[Event "69th RUS-ch Women Higher League 2019"]
[Site "Yaroslavl"]
[Date "2019.07.05"]
[Round "8.20"]
[White "Afonasieva, Anna"]
[Black "Shaydullina, Sandugach"]
[Result "1-0"]
[ECO "D02"]
[WhiteElo "2303"]
[BlackElo "2128"]
[Annotator "NA"]
[PlyCount "139"]
[EventDate "2019.06.27"]
[EventType "swiss"]
[EventCountry "RUS"]
[SourceTitle "playchess.com"]
[Source "ChessBase"]
[SourceQuality "1"]
[TimeControl "40/5400+30:1800+30"]

1. d4 {[%emt 0:00:00]} d5 {[%emt 0:00:00]} 2. Nf3 {[%emt 0:00:00]} a6 {[%emt 0:01:27]} 3. Bf4 {[%emt 0:01:50]} e6 {[%emt 0:01:05]} 4. e3 {[%emt 0:01:18]} Bd6 {[%emt 0:00:39]} 5. Bd3 {[%emt 0:03:15]} Ne7 {[%emt 0:03:47]} 6. c3 {[%emt 0:02:36]} c5 {[%emt 0:00:56]} 7. Bg3 {[%emt 0:05:08]} Nbc6 {[%emt 0:00:28]} 8. Nbd2 {[%emt 0:00:41]} c4 {[%emt 0:05:24]} 9. Bc2 {[%emt 0:01:04]} f5 {[%emt 0:00:07]} 10. Nh4 {[%emt 0:14:44]} O-O {[%emt 0:03:38]} 11. Bxd6 {[%emt 0:04:01]} Qxd6 {[%emt 0:00:05]} 12. f4 {[%emt 0:00:50]} b5 {[%emt 0:00:21]} 13. g4 {[%emt 0:01:51]} e5 {[%emt 0:04:31]} 14. dxe5 {[%emt 0:03:39]} Qh6 {[%emt 0:00:05]} 15. Nxf5 {[%emt 0:21:09]} Bxf5 {[%emt 0:00:36]} 16. Bxf5 {[%emt 0:01:19]} Qh4+ {[%emt 0:02:56]} 17. Ke2 {[%emt 0:00:58]} Nxf5 {[%emt 0:03:50]} 18. gxf5 {[%emt 0:00:22]} Qg4+ {[%emt 0:01:25]} 19. Kf2 {[%emt 0:00:40]} Nxe5 {[%emt 0:02:35]} 20. Qxg4 {[%emt 0:06:25]} Nxg4+ {[%emt 0:00:07]} 21. Kf3 {[%emt 0:00:25]} Nh6 {[%emt 0:00:05]} 22. Rad1 {[%emt 0:01:03]} Nxf5 {[%emt 0:01:46]} 23. Nf1 {[%emt 0:00:12]} Ne7 {[%emt 0:01:03]} 24. Ng3 {[%emt 0:00:36]} a5 {[%emt 0:00:44]} 25. Rhg1 {[%emt 0:04:22]} b4 {[%emt 0:00:55]} 26. Ne2 {[%emt 0:00:34]} Ra6 {[%emt 0:01:09]} 27. Rd2 {[%emt 0:03:13]} Rh6 {[%emt 0:00:24]} 28. Nd4 {[%emt 0:00:40]} Ng6 {[%emt 0:04:00]} 29. Kg2 {[%emt 0:11:01]} Re8 {[%emt 0:07:04]} 30. Nf5 {[%emt 0:04:24]} Rh5 {[%emt 0:00:07]} 31. Ng3 {[%emt 0:00:16]} Rh6 {[%emt 0:01:03]} 32. Kf3 {[%emt 0:03:19]} Nh4+ {[%emt 0:01:05]} 33. Kf2 {[%emt 0:00:13]} Ng6 {[%emt 0:00:56]} 34. Rh1 {[%emt 0:00:30]} Ne7 {[%emt 0:00:20]} 35. h4 {[%emt 0:00:55]} Rb6 {[%emt 0:01:05]} 36. Rg1 {[%emt 0:01:12]} Rf8 {[%emt 0:00:43]} 37. Nh5 {[%emt 0:01:27]} g6 {[%emt 0:00:15]} 38. Ng3 {[%emt 0:00:39]} a4 {[%emt 0:00:12]} 39. Ne2 {[%emt 0:00:56]} Rfb8 {[%emt 0:02:34]} 40. Rgd1 {[%emt 0:00:00]} a3 {[%emt 0:00:00]} 41. cxb4 {[%emt 0:02:34]} Ra6 {[%emt 0:13:34]} 42. Nc3 {[%emt 0:04:25]} Rxb4 {[%emt 0:09:44]} 43. bxa3 {[%emt 0:00:35]} Rxa3 {[%emt 0:00:05]} 44. Nxd5 {[%emt 0:00:20]} Nxd5 {[%emt 0:04:41]} 45. Rxd5 {[%emt 0:00:14]} Rb2+ {[%emt 0:00:53]} 46. Kf3 {[%emt 0:00:53]} Raxa2 {[%emt 0:03:12]} 47. Rd8+ {[%emt 0:00:42]} Kf7 {[%emt 0:00:43]} 48. R1d7+ {[%emt 0:03:10]} Ke6 {[%emt 0:00:10]} 49. Rd6+ {[%emt 0:00:43]} Kf7 {[%emt 0:01:17]} 50. R8d7+ {[%emt 0:00:18]} Ke8 {[%emt 0:00:15]} 51. Rxh7 {[%emt 0:00:15]} c3 {[%emt 0:02:19]} 52. Rc6 {[%emt 0:00:22]} Rf2+ {[%emt 0:01:23]} 53. Ke4 {[%emt 0:00:07]} Kd8 {[%emt 0:03:35]} 54. Rxc3 {[%emt 0:01:10]} Ra4+ {[%emt 0:00:27]} 55. Kd3 {[%emt 0:00:18]} Ra6 {[%emt 0:00:34]} 56. Kd4 {[%emt 0:02:54]} Ra4+ {[%emt 0:00:19]} 57. Rc4 {[%emt 0:00:31]} Ra6 {[%emt 0:02:04]} 58. h5 {[%emt 0:06:18]} Rd2+ {[%emt 0:04:13]} 59. Ke4 {[%emt 0:00:57]} Re6+ {[%emt 0:02:00]} 60. Kf3 {[%emt 0:00:04]} gxh5 {[%emt 0:01:47]} 61. Ra4 {[%emt 0:00:18]} Re7 {[%emt 0:09:21]} 62. Ra8+ {[%emt 0:00:06]} Kd7 {[%emt 0:00:06]} 63. Ra7+ {[%emt 0:00:04]} Kd6 {[%emt 0:00:02]} 64. Raxe7 {[%emt 0:00:09]} Rh2 {[%emt 0:00:07]} 65. Ra7 {[%emt 0:00:21]} h4 {[%emt 0:00:18]} 66. Ra5 {[%emt 0:00:08]} Rh3+ {[%emt 0:00:39]} 67. Ke4 {[%emt 0:00:05]} Rh1 {[%emt 0:00:22]} 68. Rh6+ {[%emt 0:00:04]} Kc7 {[%emt 0:00:06]} 69. Ra7+ {[%emt 0:00:10]} Kb8 {[%emt 0:00:06]} 70. Rg7 {[%emt 0:00:05]} 1-0

[Event "69th RUS-ch Women Higher League 2019"]
[Site "Yaroslavl"]
[Date "2019.07.05"]
[Round "8.21"]
[White "Yakushina, Ekaterina"]
[Black "Filippova, Darya"]
[Result "0-1"]
[ECO "E07"]
[WhiteElo "1783"]
[BlackElo "2174"]
[Annotator "NA"]
[PlyCount "102"]
[EventDate "2019.06.27"]
[EventType "swiss"]
[EventCountry "RUS"]
[SourceTitle "playchess.com"]
[Source "ChessBase"]
[SourceQuality "1"]
[TimeControl "40/5400+30:1800+30"]

1. d4 {[%emt 0:00:04]} d5 {[%emt 0:00:22]} 2. c4 {[%emt 0:00:51]} c6 {[%emt 0:00:32]} 3. Nf3 {[%emt 0:00:20]} Nf6 {[%emt 0:00:19]} 4. Nc3 {[%emt 0:00:14]} e6 {[%emt 0:00:40]} 5. g3 {[%emt 0:00:27]} Nbd7 {[%emt 0:02:49]} 6. Bg2 {[%emt 0:00:20]} Be7 {[%emt 0:01:26]} 7. O-O {[%emt 0:00:27]} O-O {[%emt 0:00:41]} 8. Qd3 {[%emt 0:00:23]} b6 {[%emt 0:02:48]} 9. e4 {[%emt 0:00:15]} dxe4 {[%emt 0:01:00]} 10. Nxe4 {[%emt 0:00:13]} Bb7 {[%emt 0:03:34]} 11. Rd1 {[%emt 0:03:22]} c5 {[%emt 0:06:47]} 12. Nfg5 {[%emt 0:16:53]} Qc8 {[%emt 0:08:46]} 13. d5 {[%emt 0:08:56]} exd5 {[%emt 0:01:37]} 14. cxd5 {[%emt 0:00:59]} h6 {[%emt 0:05:34]} 15. d6 {[%emt 0:14:03]} Bd8 {[%emt 0:01:34]} 16. Nxf6+ {[%emt 0:03:08]} Nxf6 {[%emt 0:00:10]} 17. Nf3 {[%emt 0:01:29]} Be4 {[%emt 0:01:53]} 18. Qc4 {[%emt 0:08:17]} Qb7 {[%emt 0:00:52]} 19. Ne1 {[%emt 0:03:40]} b5 {[%emt 0:05:21]} 20. Qxc5 {[%emt 0:10:33]} Bb6 {[%emt 0:00:35]} 21. Bxe4 {[%emt 0:00:27]} Nxe4 {[%emt 0:01:51]} 22. Qd5 {[%emt 0:00:29]} Qxd5 {[%emt 0:02:31]} 23. Rxd5 {[%emt 0:00:07]} Nxf2 {[%emt 0:04:04]} 24. Rxb5 {[%emt 0:07:10]} Ne4+ {[%emt 0:00:52]} 25. Kg2 {[%emt 0:01:22]} Nxd6 {[%emt 0:00:39]} 26. Rd5 {[%emt 0:02:22]} Rfe8 {[%emt 0:02:06]} 27. Bxh6 {[%emt 0:03:41]} Re2+ {[%emt 0:00:55]} 28. Kh3 {[%emt 0:00:44]} Ne4 {[%emt 0:02:09]} 29. Bf4 {[%emt 0:02:19]} Nf2+ {[%emt 0:03:30]} 30. Kh4 {[%emt 0:01:09]} Bd8+ {[%emt 0:01:20]} 31. Rxd8+ {[%emt 0:02:30]} Rxd8 {[%emt 0:00:10]} 32. Nf3 {[%emt 0:00:21]} f6 {[%emt 0:01:10]} 33. Bc7 {[%emt 0:02:52]} Re4+ {[%emt 0:00:36]} 34. Bf4 {[%emt 0:01:38]} g5+ {[%emt 0:00:42]} 35. Nxg5 {[%emt 0:00:09]} fxg5+ {[%emt 0:00:13]} 36. Kxg5 {[%emt 0:00:06]} Rd5+ {[%emt 0:01:41]} 37. Kh4 {[%emt 0:00:48]} Rd1 {[%emt 0:00:43]} 38. Rxd1 {[%emt 0:00:27]} Nxd1 {[%emt 0:00:07]} 39. b3 {[%emt 0:00:33]} Re2 {[%emt 0:01:38]} 40. a3 {[%emt 0:00:00]} Rxh2+ {[%emt 0:00:00]} 41. Kg4 {[%emt 0:00:15]} Rb2 {[%emt 0:00:36]} 42. b4 {[%emt 0:00:05]} Ra2 {[%emt 0:00:12]} 43. Bc1 {[%emt 0:00:43]} Ra1 {[%emt 0:00:09]} 44. Bf4 {[%emt 0:00:11]} Rxa3 {[%emt 0:00:11]} 45. Bd6 {[%emt 0:00:04]} Nf2+ {[%emt 0:01:09]} 46. Kh4 {[%emt 0:00:18]} Nd3 {[%emt 0:00:19]} 47. b5 {[%emt 0:01:24]} Ra5 {[%emt 0:00:11]} 48. Bb8 {[%emt 0:00:12]} Nb4 {[%emt 0:01:17]} 49. g4 {[%emt 0:00:33]} Nd5 {[%emt 0:00:10]} 50. g5 {[%emt 0:00:50]} Nb6 {[%emt 0:00:20]} 51. g6 {[%emt 0:00:09]} Nc8 {[%emt 0:00:12]} 0-1

[Event "69th RUS-ch Women Higher League 2019"]
[Site "Yaroslavl"]
[Date "2019.07.05"]
[Round "8.22"]
[White "Mokshanova, Elizaveta"]
[Black "Maltsevskaya, Aleksandra"]
[Result "0-1"]
[ECO "B13"]
[WhiteElo "2020"]
[BlackElo "2316"]
[Annotator "NA"]
[PlyCount "48"]
[EventDate "2019.06.27"]
[EventType "swiss"]
[EventCountry "RUS"]
[SourceTitle "playchess.com"]
[Source "ChessBase"]
[SourceQuality "1"]
[TimeControl "40/5400+30:1800+30"]

1. e4 {[%emt 0:00:00]} c6 {[%emt 0:00:00]} 2. d4 {[%emt 0:00:00]} d5 {[%emt 0:00:00]} 3. exd5 {[%emt 0:00:00]} cxd5 {[%emt 0:00:00]} 4. c4 {[%emt 0:00:00]} Nf6 {[%emt 0:00:00]} 5. Nc3 {[%emt 0:00:00]} Nc6 {[%emt 0:00:00]} 6. Bg5 {[%emt 0:00:00]} Be6 {[%emt 0:02:43]} 7. Be2 {[%emt 0:00:25]} Qa5 {[%emt 0:00:22]} 8. c5 {[%emt 0:00:36]} g6 {[%emt 0:00:48]} 9. Nf3 {[%emt 0:01:12]} Bg7 {[%emt 0:00:34]} 10. O-O {[%emt 0:00:44]} O-O {[%emt 0:00:48]} 11. h3 {[%emt 0:04:54]} Ne4 {[%emt 0:03:22]} 12. Bd2 {[%emt 0:20:28]} Qc7 {[%emt 0:08:07]} 13. Be3 {[%emt 0:04:19]} Rad8 {[%emt 0:01:06]} 14. Rc1 {[%emt 0:07:28]} f5 {[%emt 0:05:13]} 15. g3 {[%emt 0:23:34]} f4 {[%emt 0:07:56]} 16. Bxf4 {[%emt 0:06:24]} Rxf4 {[%emt 0:00:10]} 17. gxf4 {[%emt 0:00:02]} Qxf4 {[%emt 0:00:37]} 18. Kg2 {[%emt 0:05:13]} Rf8 {[%emt 0:07:39]} 19. Qd3 {[%emt 0:04:27]} Nxd4 {[%emt 0:26:01]} 20. Nxd4 {[%emt 0:04:19]} Be5 {[%emt 0:00:05]} 21. Nf3 {[%emt 0:00:45]} Bxh3+ {[%emt 0:00:13]} 22. Kh1 {[%emt 0:04:30]} Qg4 {[%emt 0:02:00]} 23. Ne1 {[%emt 0:01:20]} Qh4 {[%emt 0:00:06]} 24. Nf3 {[%emt 0:02:16]} Rxf3 {[%emt 0:00:24]} 0-1

[Event "69th RUS-ch Women Higher League 2019"]
[Site "Yaroslavl"]
[Date "2019.07.05"]
[Round "8.23"]
[White "Schepetkova, Margarita"]
[Black "Loskutova, Viktoriya"]
[Result "0-1"]
[ECO "A62"]
[WhiteElo "2241"]
[BlackElo "2019"]
[Annotator "NA"]
[PlyCount "68"]
[EventDate "2019.06.27"]
[EventType "swiss"]
[EventCountry "RUS"]
[SourceTitle "playchess.com"]
[Source "ChessBase"]
[SourceQuality "1"]
[TimeControl "40/5400+30:1800+30"]

1. d4 {[%emt 0:00:09]} Nf6 {[%emt 0:00:00]} 2. c4 {[%emt 0:00:10]} e6 {[%emt 0:00:00]} 3. g3 {[%emt 0:00:02]} c5 {[%emt 0:00:00]} 4. d5 {[%emt 0:00:05]} exd5 {[%emt 0:00:00]} 5. cxd5 {[%emt 0:00:02]} d6 {[%emt 0:00:04]} 6. Bg2 {[%emt 0:00:15]} g6 {[%emt 0:00:06]} 7. Nc3 {[%emt 0:00:03]} Bg7 {[%emt 0:00:07]} 8. Nf3 {[%emt 0:00:04]} O-O {[%emt 0:00:07]} 9. O-O {[%emt 0:00:02]} Re8 {[%emt 0:00:08]} 10. Bf4 {[%emt 0:00:04]} Bf5 {[%emt 0:00:06]} 11. Nh4 {[%emt 0:01:31]} Bg4 {[%emt 0:00:12]} 12. Qd2 {[%emt 0:14:11]} b5 {[%emt 0:00:21]} 13. Rfe1 {[%emt 0:04:28]} Qb6 {[%emt 0:12:04]} 14. e4 {[%emt 0:09:32]} Bd7 {[%emt 0:18:23]} 15. e5 {[%emt 0:02:19]} dxe5 {[%emt 0:02:45]} 16. Bxe5 {[%emt 0:00:31]} Na6 {[%emt 0:05:49]} 17. d6 {[%emt 0:13:07]} Bc6 {[%emt 0:06:17]} 18. Bxf6 {[%emt 0:11:59]} Bxf6 {[%emt 0:00:01]} 19. d7 {[%emt 0:00:37]} Rxe1+ {[%emt 0:20:51]} 20. Rxe1 {[%emt 0:00:09]} Rd8 {[%emt 0:00:09]} 21. Bxc6 {[%emt 0:01:57]} Qxc6 {[%emt 0:00:14]} 22. Nd5 {[%emt 0:01:21]} Nc7 {[%emt 0:02:06]} 23. Nxc7 {[%emt 0:03:37]} Rxd7 {[%emt 0:04:10]} 24. Re8+ {[%emt 0:09:21]} Kg7 {[%emt 0:00:01]} 25. Qe2 {[%emt 0:00:01]} Rxc7 {[%emt 0:01:24]} 26. Nf3 {[%emt 0:00:07]} Rd7 {[%emt 0:01:51]} 27. h4 {[%emt 0:00:46]} c4 {[%emt 0:05:10]} 28. h5 {[%emt 0:06:06]} Qd5 {[%emt 0:05:05]} 29. h6+ {[%emt 0:06:46]} Kxh6 {[%emt 0:00:10]} 30. Qe3+ {[%emt 0:00:03]} Kg7 {[%emt 0:00:29]} 31. Qa3 {[%emt 0:01:39]} Qd6 {[%emt 0:02:04]} 32. Qa5 {[%emt 0:00:02]} Qc6 {[%emt 0:01:14]} 33. Qb4 {[%emt 0:00:19]} Rd1+ {[%emt 0:00:08]} 34. Re1 {[%emt 0:00:08]} Qxf3 {[%emt 0:00:06]} 0-1

[Event "69th RUS-ch Women Higher League 2019"]
[Site "Yaroslavl"]
[Date "2019.07.05"]
[Round "8.24"]
[White "Dzutseva, Lana"]
[Black "Faizutdinova, Diana"]
[Result "0-1"]
[ECO "E61"]
[WhiteElo "1325"]
[BlackElo "2061"]
[Annotator "NA"]
[PlyCount "74"]
[EventDate "2019.06.27"]
[EventType "swiss"]
[EventCountry "RUS"]
[SourceTitle "playchess.com"]
[Source "ChessBase"]
[SourceQuality "1"]
[TimeControl "40/5400+30:1800+30"]

1. d4 {[%emt 0:00:00]} Nf6 {[%emt 0:00:00]} 2. c4 {[%emt 0:00:00]} d6 {[%emt 0:00:00]} 3. Nf3 {[%emt 0:00:00]} g6 {[%emt 0:00:00]} 4. Nc3 {[%emt 0:00:00]} Bf5 {[%emt 0:00:00]} 5. Nd2 {[%emt 0:10:39]} e5 {[%emt 0:01:09]} 6. dxe5 {[%emt 0:01:05]} dxe5 {[%emt 0:00:14]} 7. e4 {[%emt 0:00:13]} Bd7 {[%emt 0:10:24]} 8. Nf3 {[%emt 0:17:08]} Nc6 {[%emt 0:02:00]} 9. Bg5 {[%emt 0:00:41]} Bg7 {[%emt 0:05:10]} 10. Nd5 {[%emt 0:05:17]} h6 {[%emt 0:01:20]} 11. Nxf6+ {[%emt 0:01:58]} Bxf6 {[%emt 0:00:07]} 12. Bxf6 {[%emt 0:00:38]} Qxf6 {[%emt 0:00:04]} 13. Be2 {[%emt 0:19:17]} Rd8 {[%emt 0:04:47]} 14. O-O {[%emt 0:00:48]} O-O {[%emt 0:03:43]} 15. Qd2 {[%emt 0:13:54]} Kg7 {[%emt 0:10:12]} 16. Ne1 {[%emt 0:02:03]} Nd4 {[%emt 0:12:04]} 17. Nd3 {[%emt 0:01:04]} Be6 {[%emt 0:13:17]} 18. Rac1 {[%emt 0:02:30]} Qg5 {[%emt 0:02:20]} 19. f4 {[%emt 0:03:32]} exf4 {[%emt 0:00:05]} 20. Kh1 {[%emt 0:01:53]} f3 {[%emt 0:05:59]} 21. Qxg5 {[%emt 0:00:38]} hxg5 {[%emt 0:00:05]} 22. Bxf3 {[%emt 0:00:41]} g4 {[%emt 0:02:15]} 23. Bd1 {[%emt 0:01:12]} Rh8 {[%emt 0:00:08]} 24. Nc5 {[%emt 0:04:23]} Bc8 {[%emt 0:00:17]} 25. Rc3 {[%emt 0:01:44]} Rh6 {[%emt 0:02:39]} 26. g3 {[%emt 0:03:16]} Nc6 {[%emt 0:02:28]} 27. Nd3 {[%emt 0:03:03]} Re8 {[%emt 0:01:53]} 28. Re1 {[%emt 0:04:19]} Nd4 {[%emt 0:03:24]} 29. Rf1 {[%emt 0:02:01]} b6 {[%emt 0:00:57]} 30. Nf2 {[%emt 0:00:08]} Reh8 {[%emt 0:00:33]} 31. Nxg4 {[%emt 0:00:34]} Bxg4 {[%emt 0:00:05]} 32. Bxg4 {[%emt 0:00:04]} Rxh2+ {[%emt 0:00:04]} 33. Kg1 {[%emt 0:00:03]} Rh1+ {[%emt 0:00:20]} 34. Kf2 {[%emt 0:00:05]} R8h2+ {[%emt 0:00:05]} 35. Ke1 {[%emt 0:00:35]} Nc2+ {[%emt 0:00:11]} 36. Rxc2 {[%emt 0:00:17]} Rxf1+ {[%emt 0:00:05]} 37. Kxf1 {[%emt 0:00:03]} Rxc2 {[%emt 0:00:04]} 0-1

[Event "69th RUS-ch Women Higher League 2019"]
[Site "Yaroslavl"]
[Date "2019.07.06"]
[Round "9.2"]
[White "Shafigullina, Zarina"]
[Black "Potapova, Margarita"]
[Result "0-1"]
[ECO "A40"]
[WhiteElo "2240"]
[BlackElo "2256"]
[Annotator "NA"]
[PlyCount "100"]
[EventDate "2019.06.27"]
[EventType "swiss"]
[EventCountry "RUS"]
[SourceTitle "playchess.com"]
[Source "ChessBase"]
[SourceQuality "1"]
[TimeControl "40/5400+30:1800+30"]

1. d4 {[%emt 0:00:00]} Nf6 {[%emt 0:00:00]} 2. c4 {[%emt 0:00:00]} e6 {[%emt 0:00:00]} 3. g3 {[%emt 0:00:00]} c5 {[%emt 0:00:00]} 4. Nf3 {[%emt 0:01:08]} cxd4 {[%emt 0:00:06]} 5. Nxd4 {[%emt 0:00:05]} d5 {[%emt 0:00:06]} 6. Bg2 {[%emt 0:03:47]} e5 {[%emt 0:00:08]} 7. Nf3 {[%emt 0:00:14]} d4 {[%emt 0:00:05]} 8. O-O {[%emt 0:00:06]} Nc6 {[%emt 0:00:11]} 9. e3 {[%emt 0:00:05]} Be7 {[%emt 0:00:04]} 10. exd4 {[%emt 0:00:16]} exd4 {[%emt 0:00:04]} 11. Bf4 {[%emt 0:03:15]} O-O {[%emt 0:00:09]} 12. Ne5 {[%emt 0:04:03]} Qb6 {[%emt 0:00:05]} 13. Qb3 {[%emt 0:05:24]} Na5 {[%emt 0:00:20]} 14. Qxb6 {[%emt 0:02:09]} axb6 {[%emt 0:00:03]} 15. Nd2 {[%emt 0:01:05]} Nh5 {[%emt 0:01:47]} 16. Nb3 {[%emt 0:03:16]} Bf6 {[%emt 0:08:27]} 17. Nxa5 {[%emt 0:05:25]} Nxf4 {[%emt 0:05:24]} 18. gxf4 {[%emt 0:00:05]} Rxa5 {[%emt 0:00:14]} 19. Bd5 {[%emt 0:02:12]} g5 {[%emt 0:03:25]} 20. Rfe1 {[%emt 0:02:44]} gxf4 {[%emt 0:02:47]} 21. b4 {[%emt 0:09:14]} Ra8 {[%emt 0:25:17]} 22. Kh1 {[%emt 0:03:57]} Bf5 {[%emt 0:01:59]} 23. Rg1+ {[%emt 0:15:50]} Kh8 {[%emt 0:02:21]} 24. Rae1 {[%emt 0:00:12]} d3 {[%emt 0:06:47]} 25. Nxf7+ {[%emt 0:05:07]} Rxf7 {[%emt 0:00:04]} 26. Bxf7 {[%emt 0:00:05]} d2 {[%emt 0:01:52]} 27. Re2 {[%emt 0:01:50]} Bc3 {[%emt 0:04:46]} 28. f3 {[%emt 0:18:08]} Rd8 {[%emt 0:03:24]} 29. Bd5 {[%emt 0:00:06]} b5 {[%emt 0:03:38]} 30. Reg2 {[%emt 0:09:42]} Bg6 {[%emt 0:04:21]} 31. Rd1 {[%emt 0:01:19]} bxc4 {[%emt 0:00:34]} 32. Bxc4 {[%emt 0:01:24]} Bc2 {[%emt 0:00:35]} 33. Bb3 {[%emt 0:00:25]} Bxd1 {[%emt 0:01:06]} 34. Bxd1 {[%emt 0:00:10]} Bxb4 {[%emt 0:00:46]} 35. Kg1 {[%emt 0:02:44]} Ra8 {[%emt 0:04:06]} 36. Kf1 {[%emt 0:01:19]} Rxa2 {[%emt 0:00:28]} 37. Rg5 {[%emt 0:00:33]} Ra5 {[%emt 0:12:21]} 38. Rg4 {[%emt 0:00:29]} Re5 {[%emt 0:01:19]} 39. Bb3 {[%emt 0:00:02]} d1=Q+ {[%emt 0:00:31]} 40. Bxd1 {[%emt 0:00:00]} Re1+ {[%emt 0:00:00]} 41. Kg2 {[%emt 0:00:11]} Rxd1 {[%emt 0:00:09]} 42. Rxf4 {[%emt 0:00:06]} Bd6 {[%emt 0:00:20]} 43. Rf7 {[%emt 0:00:27]} b5 {[%emt 0:00:29]} 44. Rb7 {[%emt 0:00:16]} b4 {[%emt 0:00:06]} 45. f4 {[%emt 0:00:13]} Rb1 {[%emt 0:02:51]} 46. f5 {[%emt 0:00:10]} Be5 {[%emt 0:01:10]} 47. h4 {[%emt 0:01:00]} h5 {[%emt 0:01:25]} 48. Kf3 {[%emt 0:01:03]} b3 {[%emt 0:00:04]} 49. Rb5 {[%emt 0:00:16]} b2 {[%emt 0:00:13]} 50. Ke2 {[%emt 0:00:05]} Rh1 {[%emt 0:00:16]} 0-1

[Event "69th RUS-ch Women Higher League 2019"]
[Site "Yaroslavl"]
[Date "2019.07.06"]
[Round "9.3"]
[White "Charochkina, Daria"]
[Black "Garifullina, Leya"]
[Result "1-0"]
[ECO "A01"]
[WhiteElo "2338"]
[BlackElo "2246"]
[Annotator "NA"]
[PlyCount "133"]
[EventDate "2019.06.27"]
[EventType "swiss"]
[EventCountry "RUS"]
[SourceTitle "playchess.com"]
[Source "ChessBase"]
[SourceQuality "1"]
[TimeControl "40/5400+30:1800+30"]

1. b3 {[%emt 0:00:00]} Nf6 {[%emt 0:00:00]} 2. Bb2 {[%emt 0:00:00]} e6 {[%emt 0:00:00]} 3. e3 {[%emt 0:00:54]} b6 {[%emt 0:00:03]} 4. Nf3 {[%emt 0:00:12]} Bb7 {[%emt 0:00:05]} 5. d4 {[%emt 0:00:06]} Be7 {[%emt 0:00:24]} 6. Bd3 {[%emt 0:00:11]} O-O {[%emt 0:00:23]} 7. O-O {[%emt 0:00:10]} d5 {[%emt 0:00:03]} 8. c4 {[%emt 0:00:16]} dxc4 {[%emt 0:00:59]} 9. Bxc4 {[%emt 0:01:26]} Nbd7 {[%emt 0:00:13]} 10. Qe2 {[%emt 0:01:21]} c5 {[%emt 0:00:54]} 11. Rd1 {[%emt 0:02:15]} Qc7 {[%emt 0:01:35]} 12. Nc3 {[%emt 0:02:48]} a6 {[%emt 0:01:02]} 13. Rac1 {[%emt 0:13:50]} b5 {[%emt 0:01:57]} 14. Bd3 {[%emt 0:00:07]} Qb6 {[%emt 0:01:34]} 15. Bb1 {[%emt 0:00:38]} cxd4 {[%emt 0:06:32]} 16. Rxd4 {[%emt 0:09:11]} Rfd8 {[%emt 0:03:19]} 17. Rcd1 {[%emt 0:04:47]} Nf8 {[%emt 0:08:10]} 18. h3 {[%emt 0:09:25]} Rxd4 {[%emt 0:03:47]} 19. Rxd4 {[%emt 0:00:39]} Ng6 {[%emt 0:03:20]} 20. Ne4 {[%emt 0:06:12]} Nd5 {[%emt 0:05:20]} 21. Rd1 {[%emt 0:00:29]} Rc8 {[%emt 0:01:01]} 22. Bd4 {[%emt 0:08:09]} Qc6 {[%emt 0:02:04]} 23. Bb2 {[%emt 0:01:12]} Qc7 {[%emt 0:06:59]} 24. Qd3 {[%emt 0:09:41]} Rd8 {[%emt 0:01:58]} 25. Rc1 {[%emt 0:00:19]} Qb8 {[%emt 0:01:46]} 26. Qe2 {[%emt 0:00:32]} Qa8 {[%emt 0:02:14]} 27. Nc5 {[%emt 0:00:40]} Bc6 {[%emt 0:03:42]} 28. Ne5 {[%emt 0:02:11]} Be8 {[%emt 0:02:05]} 29. Nxg6 {[%emt 0:00:34]} hxg6 {[%emt 0:00:08]} 30. Nd3 {[%emt 0:02:45]} Rc8 {[%emt 0:02:29]} 31. Qd2 {[%emt 0:01:43]} Rxc1+ {[%emt 0:00:34]} 32. Qxc1 {[%emt 0:00:25]} Bf6 {[%emt 0:00:40]} 33. Bxf6 {[%emt 0:04:40]} Nxf6 {[%emt 0:01:59]} 34. Qc5 {[%emt 0:00:43]} Qd5 {[%emt 0:04:43]} 35. b4 {[%emt 0:03:09]} Qd8 {[%emt 0:02:14]} 36. f3 {[%emt 0:01:42]} a5 {[%emt 0:00:27]} 37. bxa5 {[%emt 0:01:01]} Qxa5 {[%emt 0:00:09]} 38. Qb4 {[%emt 0:00:28]} Qa7 {[%emt 0:00:25]} 39. Qd4 {[%emt 0:04:07]} Qxd4 {[%emt 0:02:59]} 40. exd4 {[%emt 0:00:00]} Nd5 {[%emt 0:00:00]} 41. Bc2 {[%emt 0:02:08]} Nc3 {[%emt 0:00:15]} 42. Nc1 {[%emt 0:00:03]} b4 {[%emt 0:02:34]} 43. Kf2 {[%emt 0:00:30]} Bb5 {[%emt 0:00:53]} 44. h4 {[%emt 0:04:56]} Kf8 {[%emt 0:00:14]} 45. g3 {[%emt 0:01:54]} Ke7 {[%emt 0:00:05]} 46. Ke3 {[%emt 0:00:14]} Kd6 {[%emt 0:00:38]} 47. Bb3 {[%emt 0:03:04]} Nd5+ {[%emt 0:02:13]} 48. Kd2 {[%emt 0:00:07]} Ne7 {[%emt 0:00:53]} 49. g4 {[%emt 0:01:45]} Bc6 {[%emt 0:01:48]} 50. Nd3 {[%emt 0:01:57]} f6 {[%emt 0:01:30]} 51. Ke3 {[%emt 0:02:51]} Ba8 {[%emt 0:08:59]} 52. Nxb4 {[%emt 0:00:20]} e5 {[%emt 0:00:40]} 53. dxe5+ {[%emt 0:00:22]} Kxe5 {[%emt 0:00:18]} 54. Nd3+ {[%emt 0:02:18]} Kd6 {[%emt 0:00:07]} 55. Bf7 {[%emt 0:02:48]} f5 {[%emt 0:06:30]} 56. g5 {[%emt 0:04:57]} f4+ {[%emt 0:00:52]} 57. Kxf4 {[%emt 0:00:12]} Bb7 {[%emt 0:00:34]} 58. a3 {[%emt 0:02:17]} Nf5 {[%emt 0:02:11]} 59. h5 {[%emt 0:01:16]} gxh5 {[%emt 0:01:26]} 60. Kxf5 {[%emt 0:00:47]} Bxf3 {[%emt 0:00:05]} 61. Kf4 {[%emt 0:02:26]} Be2 {[%emt 0:00:21]} 62. Ke3 {[%emt 0:01:44]} Bg4 {[%emt 0:00:49]} 63. Nf2 {[%emt 0:00:26]} Bc8 {[%emt 0:00:04]} 64. Bxh5 {[%emt 0:00:17]} Ke5 {[%emt 0:00:23]} 65. Bg4 {[%emt 0:01:00]} Ba6 {[%emt 0:00:16]} 66. Nd3+ {[%emt 0:00:40]} Kd6 {[%emt 0:00:12]} 67. Ke4 {Kd5+} 1-0